[Event "Lilla Elite Hotels Open 2023"]
[Site "Elite Stadshotellet, Kungsgatan 6, Vaxjo, Sweden"]
[Date "2023.02.10"]
[Round "1.1"]
[White "Martin, Leopold"]
[Black "Steffert, Goran"]
[Result "1-0"]
[TimeControl "15 minutes + 5 seconds per move from move one (Round 1 - 4) / 90 minutes + 30 seconds per move from move one (Round 5 - 8)"]
[WhiteFideId "1746308"]
[BlackFideId "1743376"]
[WhiteElo "1293"]
[BlackElo "1574"]

1. e4 {[%clk 00:15:06]} {[%emt 00:00:03]} e5 {[%clk 00:15:09]} {[%emt
00:00:02]} 2. Nf3 {[%clk 00:15:09]} {[%emt 00:00:02]} Nc6 {[%clk 00:15:12]}
{[%emt 00:00:03]} 3. Bb5 {[%clk 00:15:10]} {[%emt 00:00:03]} d6 {[%clk
00:15:15]} {[%emt 00:00:02]} 4. O-O {[%clk 00:14:59]} {[%emt 00:00:16]} Nf6
{[%clk 00:15:13]} {[%emt 00:00:06]} 5. Bxc6+ {[%clk 00:14:57]} {[%emt
00:00:07]} bxc6 {[%clk 00:15:16]} {[%emt 00:00:03]} 6. Nc3 {[%clk 00:14:49]}
{[%emt 00:00:12]} Be7 {[%clk 00:15:09]} {[%emt 00:00:12]} 7. d3 {[%clk
00:14:42]} {[%emt 00:00:12]} O-O {[%clk 00:15:02]} {[%emt 00:00:12]} 8. d4
{[%clk 00:14:27]} {[%emt 00:00:20]} exd4 {[%clk 00:14:50]} {[%emt 00:00:18]} 9.
Nxd4 {[%clk 00:14:20]} {[%emt 00:00:11]} c5 {[%clk 00:14:18]} {[%emt 00:00:37]}
10. Nf5 {[%clk 00:14:05]} {[%emt 00:00:20]} Be6 {[%clk 00:13:08]} {[%emt
00:01:15]} 11. Re1 {[%clk 00:13:25]} {[%emt 00:00:44]} Re8 {[%clk 00:12:02]}
{[%emt 00:01:12]} 12. Nd5 {[%clk 00:12:47]} {[%emt 00:00:42]} Nxd5 {[%clk
00:10:46]} {[%emt 00:01:21]} 13. Qg4 {[%clk 00:10:41]} {[%emt 00:02:11]} Bxf5
{[%clk 00:10:44]} {[%emt 00:00:09]} 14. exf5 {[%clk 00:10:16]} {[%emt
00:00:29]} Bf6 {[%clk 00:09:27]} {[%emt 00:01:22]} 15. Bh6 {[%clk 00:08:17]}
{[%emt 00:02:03]} Qd7 {[%clk 00:08:13]} {[%emt 00:01:19]} 16. h4 {[%clk
00:08:17]} {[%emt 00:00:04]} Kh8 {[%clk 00:08:05]} {[%emt 00:00:15]} 17. Bg5
{[%clk 00:07:52]} {[%emt 00:00:30]} Bxb2 {[%clk 00:06:21]} {[%emt 00:01:49]} 18.
Rxe8+ {[%clk 00:07:05]} {[%emt 00:00:51]} Rxe8 {[%clk 00:06:24]} {[%emt
00:00:02]} 19. Rb1 {[%clk 00:07:02]} {[%emt 00:00:09]} Nf6 {[%clk 00:06:21]}
{[%emt 00:00:08]} 20. Bxf6 {[%clk 00:06:42]} {[%emt 00:00:25]} Bxf6 {[%clk
00:06:24]} {[%emt 00:00:02]} 21. h5 {[%clk 00:06:17]} {[%emt 00:00:30]} h6
{[%clk 00:06:27]} {[%emt 00:00:02]} 22. Qh3 {[%clk 00:05:33]} {[%emt 00:00:49]}
Re5 {[%clk 00:05:57]} {[%emt 00:00:34]} 23. g4 {[%clk 00:05:26]} {[%emt
00:00:13]} Qe7 {[%clk 00:05:46]} {[%emt 00:00:14]} 24. f4 {[%clk 00:05:06]}
{[%emt 00:00:26]} Re1+ {[%clk 00:05:40]} {[%emt 00:00:11]} 25. Rxe1 {[%clk
00:04:59]} {[%emt 00:00:13]} Qxe1+ {[%clk 00:05:43]} {[%emt 00:00:02]} 26. Qf1
{[%clk 00:04:30]} {[%emt 00:00:34]} Bd4+ {[%clk 00:05:47]} {[%emt 00:00:01]} 27.
Kg2 {[%clk 00:04:23]} {[%emt 00:00:12]} Qd2+ {[%clk 00:05:39]} {[%emt
00:00:03]} 28. Kh3 {[%clk 00:04:15]} {[%emt 00:00:23]} Qe3+ {[%clk 00:05:31]}
{[%emt 00:00:14]} 29. Kg2 {[%clk 00:04:04]} {[%emt 00:00:14]} Qd2+ {[%clk
00:05:21]} {[%emt 00:00:16]} 30. Kh3 {[%clk 00:04:00]} {[%emt 00:00:09]} Qxc2
{[%clk 00:05:24]} {[%emt 00:00:02]} 31. Qf3 {[%clk 00:03:28]} {[%emt 00:00:35]}
Qxa2 {[%clk 00:04:45]} {[%emt 00:00:46]} 32. g5 {[%clk 00:03:03]} {[%emt
00:00:30]} c4 {[%clk 00:04:17]} {[%emt 00:00:33]} 33. Qa8+ {[%clk 00:02:44]}
{[%emt 00:00:25]} Kh7 {[%clk 00:04:17]} {[%emt 00:00:05]} 34. g6+ {[%clk
00:02:46]} {[%emt 00:00:03]} fxg6 {[%clk 00:04:21]} {[%emt 00:00:01]} 35. fxg6#
{[%clk 00:02:48]} {[%emt 00:00:03]} 1-0

[Event "Lilla Elite Hotels Open 2023"]
[Site "Elite Stadshotellet, Kungsgatan 6, Vaxjo, Sweden"]
[Date "2023.02.10"]
[Round "1.2"]
[White "Dingertz, Filip"]
[Black "Dahlin, Emil"]
[Result "1-0"]
[TimeControl "15 minutes + 5 seconds per move from move one (Round 1 - 4) / 90 minutes + 30 seconds per move from move one (Round 5 - 8)"]
[WhiteFideId "1757288"]
[BlackFideId "1771035"]
[WhiteElo "1571"]
[BlackElo "1291"]

1. c4 {[%clk 00:15:08]} {[%emt 00:00:01]} e5 {[%clk 00:15:07]} {[%emt
00:00:03]} 2. Nc3 {[%clk 00:15:11]} {[%emt 00:00:02]} Nf6 {[%clk 00:15:08]}
{[%emt 00:00:04]} 3. g3 {[%clk 00:15:15]} {[%emt 00:00:02]} Bc5 {[%clk
00:15:09]} {[%emt 00:00:04]} 4. Bg2 {[%clk 00:15:18]} {[%emt 00:00:01]} Nc6
{[%clk 00:15:11]} {[%emt 00:00:05]} 5. e3 {[%clk 00:15:06]} {[%emt 00:00:15]}
d6 {[%clk 00:15:09]} {[%emt 00:00:07]} 6. Nge2 {[%clk 00:15:09]} {[%emt
00:00:03]} Bf5 {[%clk 00:14:47]} {[%emt 00:00:27]} 7. d4 {[%clk 00:14:57]}
{[%emt 00:00:16]} Bb4 {[%clk 00:14:40]} {[%emt 00:00:12]} 8. dxe5 {[%clk
00:14:23]} {[%emt 00:00:40]} dxe5 {[%clk 00:14:37]} {[%emt 00:00:06]} 9. O-O
{[%clk 00:13:29]} {[%emt 00:01:01]} O-O {[%clk 00:13:57]} {[%emt 00:00:45]} 10.
a3 {[%clk 00:13:17]} {[%emt 00:00:17]} Bxc3 {[%clk 00:13:57]} {[%emt 00:00:04]}
11. Nxc3 {[%clk 00:13:20]} {[%emt 00:00:02]} Qxd1 {[%clk 00:13:41]} {[%emt
00:00:21]} 12. Rxd1 {[%clk 00:13:24]} {[%emt 00:00:02]} Rad8 {[%clk 00:13:37]}
{[%emt 00:00:09]} 13. Rxd8 {[%clk 00:11:30]} {[%emt 00:02:00]} Rxd8 {[%clk
00:13:38]} {[%emt 00:00:03]} 14. e4 {[%clk 00:11:20]} {[%emt 00:00:15]} Bg6
{[%clk 00:13:37]} {[%emt 00:00:05]} 15. Bg5 {[%clk 00:11:14]} {[%emt 00:00:11]}
h6 {[%clk 00:13:16]} {[%emt 00:00:26]} 16. Bxf6 {[%clk 00:11:14]} {[%emt
00:00:06]} gxf6 {[%clk 00:13:18]} {[%emt 00:00:03]} 17. Nd5 {[%clk 00:11:18]}
Kg7 {[%clk 00:11:56]} {[%emt 00:01:26]} 18. Kf1 {[%clk 00:07:21]} {[%emt
00:04:02]} Rd7 {[%clk 00:11:25]} {[%emt 00:00:37]} 19. Bh3 {[%clk 00:05:37]}
{[%emt 00:01:49]} Rd8 {[%clk 00:10:57]} {[%emt 00:00:33]} 20. Bg2 {[%clk
00:03:32]} {[%emt 00:02:10]} Rd7 {[%clk 00:10:56]} {[%emt 00:00:06]} 21. Rd1
{[%clk 00:02:59]} {[%emt 00:00:37]} Nd4 {[%clk 00:10:53]} {[%emt 00:00:09]} 22.
Bh3 {[%clk 00:01:44]} {[%emt 00:01:20]} Rd8 {[%clk 00:10:33]} {[%emt 00:00:25]}
23. Nxc7 {[%clk 00:01:24]} {[%emt 00:00:25]} Bxe4 {[%clk 00:09:47]} {[%emt
00:00:51]} 24. Nb5 {[%clk 00:01:19]} {[%emt 00:00:11]} a6 {[%clk 00:09:25]}
{[%emt 00:00:27]} 25. Nxd4 {[%clk 00:01:10]} {[%emt 00:00:15]} Rxd4 {[%clk
00:09:21]} {[%emt 00:00:09]} 26. Rxd4 {[%clk 00:01:04]} {[%emt 00:00:10]} exd4
{[%clk 00:09:23]} {[%emt 00:00:02]} 27. c5 {[%clk 00:01:02]} {[%emt 00:00:08]}
Kf8 {[%clk 00:09:23]} {[%emt 00:00:05]} 28. Bc8 {[%clk 00:01:05]} {[%emt
00:00:02]} Ke7 {[%clk 00:09:10]} {[%emt 00:00:17]} 29. Ke2 {[%clk 00:01:02]}
{[%emt 00:00:08]} Kd8 {[%clk 00:08:52]} {[%emt 00:00:23]} 30. Bg4 {[%clk
00:00:57]} {[%emt 00:00:10]} Bg6 {[%clk 00:08:23]} {[%emt 00:00:34]} 31. f4
{[%clk 00:00:52]} {[%emt 00:00:10]} Be4 {[%clk 00:08:12]} {[%emt 00:00:16]} 32.
Bf3 {[%clk 00:00:52]} {[%emt 00:00:06]} d3+ {[%clk 00:07:26]} {[%emt 00:00:51]}
33. Ke3 {[%clk 00:00:51]} {[%emt 00:00:06]} Bxf3 {[%clk 00:06:07]} {[%emt
00:01:23]} 34. Kxf3 {[%clk 00:00:54]} {[%emt 00:00:02]} d2 {[%clk 00:06:11]}
{[%emt 00:00:01]} 35. Ke2 {[%clk 00:00:58]} d1=Q+ {[%clk 00:06:12]} {[%emt
00:00:05]} 36. Kxd1 {[%clk 00:01:02]} {[%emt 00:00:02]} Kc7 {[%clk 00:06:11]}
{[%emt 00:00:06]} 37. Kd2 {[%clk 00:01:06]} {[%emt 00:00:01]} Kc6 {[%clk
00:06:14]} {[%emt 00:00:02]} 38. b4 {[%clk 00:01:10]} a5 {[%clk 00:06:13]}
{[%emt 00:00:06]} 39. Kd3 {[%clk 00:01:12]} {[%emt 00:00:04]} axb4 {[%clk
00:06:01]} {[%emt 00:00:17]} 40. axb4 {[%clk 00:01:16]} {[%emt 00:00:01]} f5
{[%clk 00:05:59]} {[%emt 00:00:06]} 41. Kc4 {[%clk 00:01:10]} {[%emt 00:00:11]}
f6 {[%clk 00:05:40]} {[%emt 00:00:25]} 42. b5+ {[%clk 00:01:11]} {[%emt
00:00:03]} Kd7 {[%clk 00:05:40]} {[%emt 00:00:05]} 43. Kd5 {[%clk 00:01:15]}
{[%emt 00:00:02]} h5 {[%clk 00:05:15]} {[%emt 00:00:29]} 44. c6+ {[%clk
00:01:07]} {[%emt 00:00:14]} bxc6+ {[%clk 00:05:17]} {[%emt 00:00:02]} 45.
bxc6+ {[%clk 00:01:11]} {[%emt 00:00:01]} Ke7 {[%clk 00:05:20]} {[%emt
00:00:03]} 46. h4 {[%clk 00:00:53]} {[%emt 00:00:23]} Kd8 {[%clk 00:05:11]}
{[%emt 00:00:14]} 47. Ke6 {[%clk 00:00:57]} Kc7 {[%clk 00:05:15]} 48. Kxf6
{[%clk 00:01:01]} {[%emt 00:00:01]} Kxc6 {[%clk 00:05:19]} {[%emt 00:00:01]} 49.
Kxf5 {[%clk 00:01:06]} {[%emt 00:00:01]} Kd7 {[%clk 00:05:23]} {[%emt
00:00:02]} 50. Kg6 {[%clk 00:01:09]} Ke7 {[%clk 00:05:26]} {[%emt 00:00:02]} 51.
f5 {[%clk 00:01:09]} {[%emt 00:00:05]} Kf8 {[%clk 00:05:29]} 52. Kxh5 {[%clk
00:01:12]} {[%emt 00:00:02]} Kf7 {[%clk 00:05:33]} {[%emt 00:00:01]} 53. Kg5
{[%clk 00:01:16]} {[%emt 00:00:01]} Kg7 {[%clk 00:05:36]} {[%emt 00:00:02]} 54.
f6+ {[%clk 00:01:20]} Kf7 {[%clk 00:05:37]} {[%emt 00:00:04]} 55. h5 {[%emt
00:00:02]} Kg8 {[%clk 00:05:39]} {[%emt 00:00:02]} 56. Kg6 {[%clk 00:01:27]}
{[%emt 00:00:03]} Kh8 {[%clk 00:05:39]} {[%emt 00:00:05]} 57. h6 {[%clk
00:01:30]} {[%emt 00:00:02]} Kg8 {[%clk 00:05:43]} {[%emt 00:00:01]} 58. f7+
{[%clk 00:01:33]} {[%emt 00:00:02]} Kf8 {[%clk 00:05:44]} {[%emt 00:00:03]} 59.
h7 {[%clk 00:01:37]} {[%emt 00:00:01]} Ke7 {[%clk 00:05:48]} {[%emt 00:00:02]}
60. h8=Q {[%clk 00:01:38]} {[%emt 00:00:03]} Kd6 {[%clk 00:05:49]} {[%emt
00:00:03]} 61. f8=Q+ {[%clk 00:01:40]} {[%emt 00:00:04]} Kd5 {[%clk 00:05:50]}
{[%emt 00:00:03]} 62. Qf4 {[%clk 00:01:39]} {[%emt 00:00:06]} Ke6 {[%clk
00:05:51]} {[%emt 00:00:04]} 63. Qhf6+ {[%clk 00:01:40]} {[%emt 00:00:05]} Kd5
{[%clk 00:05:53]} {[%emt 00:00:02]} 64. Q4d4# {[%clk 00:01:43]} {[%emt
00:00:02]} 1-0

[Event "Lilla Elite Hotels Open 2023"]
[Site "Elite Stadshotellet, Kungsgatan 6, Vaxjo, Sweden"]
[Date "2023.02.10"]
[Round "2.1"]
[White "Lyngsjo, Luke"]
[Black "Dingertz, Filip"]
[Result "1/2-1/2"]
[TimeControl "15 minutes + 5 seconds per move from move one (Round 1 - 4) / 90 minutes + 30 seconds per move from move one (Round 5 - 8)"]
[WhiteFideId "1755811"]
[BlackFideId "1757288"]
[WhiteElo "1391"]
[BlackElo "1571"]

1. e4 {[%clk 00:15:08]} {[%emt 00:00:02]} e5 {[%clk 00:15:09]} {[%emt
00:00:01]} 2. Nf3 {[%clk 00:15:11]} {[%emt 00:00:02]} Nc6 {[%clk 00:15:13]}
{[%emt 00:00:01]} 3. Bc4 {[%clk 00:15:15]} {[%emt 00:00:01]} Bc5 {[%clk
00:15:17]} {[%emt 00:00:02]} 4. c3 {[%clk 00:15:18]} {[%emt 00:00:01]} Nf6
{[%clk 00:15:20]} {[%emt 00:00:02]} 5. d3 {[%clk 00:15:22]} O-O {[%clk
00:15:15]} {[%emt 00:00:10]} 6. Bb3 {[%clk 00:15:22]} {[%emt 00:00:06]} h6
{[%clk 00:14:51]} {[%emt 00:00:29]} 7. Nbd2 {[%clk 00:15:19]} {[%emt 00:00:07]}
d5 {[%clk 00:14:52]} {[%emt 00:00:04]} 8. O-O {[%clk 00:14:18]} {[%emt
00:01:05]} Bg4 {[%clk 00:14:21]} {[%emt 00:00:36]} 9. Bc2 {[%clk 00:13:53]}
{[%emt 00:00:31]} Re8 {[%clk 00:13:57]} {[%emt 00:00:29]} 10. Re1 {[%clk
00:13:14]} {[%emt 00:00:43]} a6 {[%clk 00:13:17]} {[%emt 00:00:46]} 11. Nf1
{[%clk 00:13:02]} {[%emt 00:00:17]} dxe4 {[%clk 00:11:11]} {[%emt 00:02:12]} 12.
dxe4 {[%clk 00:12:46]} {[%emt 00:00:20]} Qxd1 {[%clk 00:11:12]} {[%emt
00:00:04]} 13. Bxd1 {[%clk 00:12:08]} {[%emt 00:00:43]} Rad8 {[%clk 00:10:21]}
{[%emt 00:00:57]} 14. h3 {[%clk 00:11:58]} {[%emt 00:00:14]} Bh5 {[%clk
00:10:23]} {[%emt 00:00:03]} 15. Ng3 {[%clk 00:11:56]} {[%emt 00:00:06]} Bg6
{[%clk 00:10:26]} {[%emt 00:00:03]} 16. Bc2 {[%clk 00:11:37]} {[%emt 00:00:24]}
b5 {[%clk 00:09:52]} {[%emt 00:00:39]} 17. Be3 {[%clk 00:11:02]} {[%emt
00:00:40]} Bxe3 {[%clk 00:09:55]} {[%emt 00:00:02]} 18. Rxe3 {[%clk 00:11:03]}
{[%emt 00:00:04]} Nh5 {[%clk 00:09:20]} {[%emt 00:00:39]} 19. Nxh5 {[%clk
00:10:12]} {[%emt 00:00:57]} Bxh5 {[%clk 00:09:24]} {[%emt 00:00:02]} 20. g4
{[%clk 00:09:47]} {[%emt 00:00:29]} Bg6 {[%clk 00:09:28]} {[%emt 00:00:01]} 21.
Ree1 {[%clk 00:09:17]} {[%emt 00:00:35]} f6 {[%clk 00:07:03]} {[%emt 00:02:30]}
22. Rad1 {[%clk 00:09:06]} {[%emt 00:00:16]} Na5 {[%clk 00:06:40]} {[%emt
00:00:29]} 23. b3 {[%clk 00:08:11]} {[%emt 00:00:59]} Nb7 {[%clk 00:06:25]}
{[%emt 00:00:20]} 24. Nh4 {[%clk 00:07:48]} {[%emt 00:00:28]} Bf7 {[%clk
00:06:08]} {[%emt 00:00:21]} 25. Nf5 {[%clk 00:07:37]} {[%emt 00:00:17]} Be6
{[%clk 00:05:32]} {[%emt 00:00:41]} 26. f3 {[%clk 00:06:49]} {[%emt 00:00:54]}
g6 {[%clk 00:03:26]} {[%emt 00:02:10]} 27. Ne3 {[%clk 00:06:48]} {[%emt
00:00:05]} Nd6 {[%clk 00:03:12]} {[%emt 00:00:20]} 28. Nd5 {[%clk 00:06:37]}
{[%emt 00:00:15]} Bxd5 {[%clk 00:03:01]} {[%emt 00:00:17]} 29. Rxd5 {[%clk
00:06:26]} {[%emt 00:00:16]} Nf7 {[%clk 00:02:26]} {[%emt 00:00:39]} 30. Red1
{[%clk 00:06:04]} {[%emt 00:00:27]} Rd6 {[%clk 00:02:18]} {[%emt 00:00:14]} 31.
b4 {[%clk 00:05:55]} {[%emt 00:00:14]} Red8 {[%clk 00:02:02]} {[%emt 00:00:20]}
32. Bb3 {[%clk 00:05:41]} {[%emt 00:00:19]} Kg7 {[%clk 00:01:44]} {[%emt
00:00:24]} 33. Kf2 {[%clk 00:05:18]} {[%emt 00:00:28]} Kf8 {[%clk 00:00:21]}
{[%emt 00:01:28]} 34. c4 {[%clk 00:04:59]} {[%emt 00:00:25]} c6 {[%clk
00:00:16]} {[%emt 00:00:10]} 35. Rxd6 {[%clk 00:04:54]} {[%emt 00:00:09]} Rxd6
{[%clk 00:00:17]} {[%emt 00:00:05]} 36. Rxd6 Nxd6 {[%clk 00:00:21]} 37. c5
{[%clk 00:04:53]} {[%emt 00:00:01]} Nb7 {[%clk 00:00:13]} {[%emt 00:00:12]} 38.
Be6 {[%clk 00:04:40]} {[%emt 00:00:19]} a5 {[%clk 00:00:07]} {[%emt 00:00:11]}
39. a3 {[%clk 00:04:36]} {[%emt 00:00:09]} axb4 {[%clk 00:00:11]} {[%emt
00:00:01]} 40. axb4 {[%clk 00:04:38]} {[%emt 00:00:03]} Ke7 {[%clk 00:00:13]}
{[%emt 00:00:03]} 41. Bb3 {[%clk 00:04:17]} {[%emt 00:00:25]} Nd8 {[%clk
00:00:17]} {[%emt 00:00:01]} 42. Ke3 {[%clk 00:02:44]} {[%emt 00:01:38]} g5
{[%clk 00:00:21]} {[%emt 00:00:01]} 43. Kf2 {[%clk 00:02:27]} {[%emt 00:00:22]}
Nb7 {[%clk 00:00:20]} {[%emt 00:00:07]} 44. Kg3 {[%clk 00:02:20]} {[%emt
00:00:12]} Nd8 {[%clk 00:00:24]} {[%emt 00:00:02]} 45. Kf2 {[%clk 00:01:34]}
{[%emt 00:00:50]} 1/2-1/2

[Event "Lilla Elite Hotels Open 2023"]
[Site "Elite Stadshotellet, Kungsgatan 6, Vaxjo, Sweden"]
[Date "2023.02.10"]
[Round "2.2"]
[White "Mendys, Tommy"]
[Black "Gultekin, Ece"]
[Result "1-0"]
[TimeControl "15 minutes + 5 seconds per move from move one (Round 1 - 4) / 90 minutes + 30 seconds per move from move one (Round 5 - 8)"]
[WhiteFideId "1762869"]
[BlackFideId "1772945"]
[WhiteElo "1563"]
[BlackElo "1368"]

1. e4 {[%clk 00:15:05]} {[%emt 00:00:04]} e5 {[%clk 00:15:09]} {[%emt
00:00:01]} 2. Nf3 {[%clk 00:15:06]} {[%emt 00:00:04]} Nc6 {[%clk 00:15:12]}
{[%emt 00:00:02]} 3. Bb5 {[%clk 00:15:09]} {[%emt 00:00:02]} a6 {[%clk
00:15:16]} {[%emt 00:00:01]} 4. Ba4 {[%clk 00:15:13]} {[%emt 00:00:01]} Bc5
{[%clk 00:15:04]} {[%emt 00:00:17]} 5. c3 {[%clk 00:14:21]} {[%emt 00:00:57]}
b5 {[%clk 00:14:21]} {[%emt 00:00:49]} 6. Bb3 {[%clk 00:14:15]} {[%emt
00:00:11]} d6 {[%clk 00:13:51]} {[%emt 00:00:34]} 7. O-O {[%clk 00:14:10]}
{[%emt 00:00:10]} Na5 {[%clk 00:13:39]} {[%emt 00:00:17]} 8. Bc2 {[%clk
00:13:40]} {[%emt 00:00:35]} Nc6 {[%clk 00:11:14]} {[%emt 00:02:31]} 9. d4
{[%clk 00:13:38]} {[%emt 00:00:07]} exd4 {[%clk 00:10:55]} {[%emt 00:00:24]} 10.
cxd4 {[%clk 00:13:40]} {[%emt 00:00:02]} Bb6 {[%clk 00:10:45]} {[%emt
00:00:09]} 11. h3 {[%clk 00:13:17]} {[%emt 00:00:34]} d5 {[%clk 00:09:48]}
{[%emt 00:01:02]} 12. exd5 {[%clk 00:13:02]} {[%emt 00:00:21]} Qxd5 {[%clk
00:09:51]} {[%emt 00:00:01]} 13. Re1+ {[%clk 00:12:58]} {[%emt 00:00:09]} Nge7
{[%clk 00:09:41]} {[%emt 00:00:16]} 14. Bb3 {[%clk 00:12:46]} {[%emt 00:00:17]}
Qd8 {[%clk 00:09:24]} {[%emt 00:00:19]} 15. Ng5 {[%clk 00:10:29]} {[%emt
00:02:24]} Be6 {[%clk 00:04:58]} {[%emt 00:04:32]} 16. d5 {[%clk 00:07:12]}
{[%emt 00:03:21]} h6 {[%clk 00:04:07]} {[%emt 00:00:56]} 17. Nxe6 {[%clk
00:07:13]} {[%emt 00:00:04]} fxe6 {[%clk 00:04:01]} {[%emt 00:00:11]} 18. dxc6
{[%clk 00:06:39]} {[%emt 00:00:40]} Qb8 {[%clk 00:02:52]} {[%emt 00:01:13]} 19.
Qd7+ {[%clk 00:06:02]} {[%emt 00:00:43]} Kf8 {[%clk 00:02:55]} {[%emt
00:00:02]} 20. Qxe6 {[%clk 00:05:24]} {[%emt 00:00:43]} 1-0

[Event "Lilla Elite Hotels Open 2023"]
[Site "Elite Stadshotellet, Kungsgatan 6, Vaxjo, Sweden"]
[Date "2023.02.10"]
[Round "3.1"]
[White "Gunnare, William"]
[Black "Mendys, Tommy"]
[Result "1-0"]
[TimeControl "15 minutes + 5 seconds per move from move one (Round 1 - 4) / 90 minutes + 30 seconds per move from move one (Round 5 - 8)"]
[WhiteFideId "1774433"]
[BlackFideId "1762869"]
[WhiteElo "1457"]
[BlackElo "1563"]

1. d4 {[%clk 00:15:10]} Nf6 {[%clk 00:15:06]} {[%emt 00:00:04]} 2. c4 {[%clk
00:15:13]} {[%emt 00:00:01]} e6 {[%clk 00:15:07]} {[%emt 00:00:04]} 3. Nf3
{[%clk 00:15:17]} {[%emt 00:00:03]} d5 {[%clk 00:15:08]} {[%emt 00:00:03]} 4.
g3 {[%clk 00:15:20]} {[%emt 00:00:02]} b6 {[%clk 00:14:20]} {[%emt 00:00:53]} 5.
Bg2 {[%clk 00:15:23]} {[%emt 00:00:02]} Bb7 {[%clk 00:13:42]} {[%emt 00:00:43]}
6. O-O {[%clk 00:15:22]} {[%emt 00:00:05]} Be7 {[%clk 00:13:45]} {[%emt
00:00:02]} 7. Qc2 {[%clk 00:14:46]} {[%emt 00:00:42]} O-O {[%clk 00:13:33]}
{[%emt 00:00:17]} 8. Bf4 {[%clk 00:14:25]} {[%emt 00:00:26]} c5 {[%clk
00:13:14]} {[%emt 00:00:24]} 9. Rd1 {[%clk 00:12:34]} {[%emt 00:01:55]} Nc6
{[%clk 00:12:14]} {[%emt 00:01:06]} 10. Nc3 {[%clk 00:10:33]} {[%emt 00:02:06]}
Nb4 {[%clk 00:11:04]} {[%emt 00:01:15]} 11. Qb1 {[%clk 00:09:33]} {[%emt
00:01:05]} Qc8 {[%clk 00:09:27]} {[%emt 00:01:42]} 12. a3 {[%clk 00:09:13]}
{[%emt 00:00:25]} Nc6 {[%clk 00:08:49]} {[%emt 00:00:42]} 13. cxd5 {[%clk
00:09:03]} {[%emt 00:00:15]} Nxd5 {[%clk 00:08:47]} {[%emt 00:00:07]} 14. Nxd5
{[%clk 00:09:02]} {[%emt 00:00:06]} exd5 {[%clk 00:08:50]} {[%emt 00:00:03]} 15.
dxc5 {[%clk 00:08:43]} {[%emt 00:00:24]} Bxc5 {[%clk 00:08:29]} {[%emt
00:00:25]} 16. Rxd5 {[%clk 00:08:38]} {[%emt 00:00:10]} Ne7 {[%clk 00:07:54]}
{[%emt 00:00:40]} 17. Rd1 {[%clk 00:08:13]} {[%emt 00:00:30]} Ng6 {[%clk
00:07:28]} {[%emt 00:00:31]} 18. Bd2 {[%clk 00:05:48]} {[%emt 00:02:31]} Qe6
{[%clk 00:07:22]} {[%emt 00:00:11]} 19. e3 {[%clk 00:05:08]} {[%emt 00:00:44]}
Be4 {[%clk 00:06:45]} {[%emt 00:00:42]} 20. Ng5 {[%clk 00:04:20]} {[%emt
00:00:54]} Bxb1 {[%clk 00:04:31]} {[%emt 00:02:19]} 21. Nxe6 {[%clk 00:04:23]}
{[%emt 00:00:02]} fxe6 {[%clk 00:04:34]} {[%emt 00:00:02]} 22. Bxa8 {[%clk
00:04:17]} {[%emt 00:00:11]} Rxa8 {[%clk 00:04:23]} {[%emt 00:00:16]} 23. Raxb1
{[%clk 00:04:19]} {[%emt 00:00:02]} Ne5 {[%clk 00:04:27]} {[%emt 00:00:01]} 24.
Bc3 {[%clk 00:04:03]} {[%emt 00:00:22]} Nf3+ {[%clk 00:03:37]} {[%emt
00:00:56]} 25. Kg2 {[%clk 00:04:06]} {[%emt 00:00:01]} Ng5 {[%clk 00:03:41]}
{[%emt 00:00:01]} 26. Rd7 {[%clk 00:04:03]} {[%emt 00:00:08]} Rf8 {[%clk
00:03:44]} {[%emt 00:00:02]} 27. Rxg7+ {[%clk 00:04:03]} {[%emt 00:00:05]} 1-0